bitfinex/quotes_BTCUSD_20251114
["timestamp","ask_amount","ask_price","bid_price","bid_amount"]
[1763117375787,0.20584179,97162.0,97161.0,0.00105758]
[1763117375997,0.30871695,97177.0,97161.0,0.00105758]
[1763117375998,0.01215,97170.0,97162.0,0.20584147]
[1763117376221,0.01215,97170.0,97161.0,0.00105758]
[1763117376426,0.20583384,97166.0,97161.0,0.00105758]
[1763117376635,0.01215,97170.0,97161.0,0.00205758]
[1763117376838,0.20583647,97165.0,97161.0,0.206901]
[1763117377134,0.20583808,97164.0,97162.0,0.001]
[1763117377492,0.20583967,97163.0,97162.0,0.001]
[1763117377692,0.01029018,97180.0,97162.0,0.001]
[1763117377896,0.10315819,97173.0,97166.0,0.20583309]
[1763117378148,0.10315819,97173.0,97170.0,0.02]
[1763117378308,0.10315819,97173.0,97166.0,0.20583233]
[1763117378510,0.2058206,97172.0,97162.0,0.20584179]
[1763117378757,0.20583096,97168.0,97161.0,0.00205758]
[1763117378961,0.20583096,97168.0,97161.0,0.00105758]
[1763117379216,0.20583096,97168.0,97165.0,0.20583497]
[1763117379374,0.20582272,97171.0,97166.0,0.20583135]
[1763117379574,0.20582272,97171.0,97166.0,0.20583331]
[1763117379773,0.20582272,97171.0,97167.0,0.20582943]
[1763117380184,0.20582945,97168.0,97165.0,0.20583543]
[1763117380404,0.20582104,97172.0,97165.0,0.2068335]
[1763117380605,0.01217,97175.0,97165.0,0.001]
[1763117380810,0.20582097,97172.0,97166.0,0.20583203]
[1763117381009,0.20582287,97171.0,97168.0,0.20582897]
[1763117381181,0.20581697,97174.0,97166.0,0.20583203]
[1763117381385,0.2058206,97172.0,97168.0,0.20582869]
[1763117382482,0.2058206,97172.0,97167.0,0.20683005]
[1763117382855,0.2058206,97172.0,97167.0,0.20583005]
[1763117383039,0.20582458,97171.0,97168.0,0.20682891]
[1763117383246,0.20582503,97170.0,97168.0,0.002]
[1763117383447,0.20582696,97169.0,97168.0,0.001]
[1763117383824,0.20582503,97170.0,97168.0,0.001]
[1763117384694,0.20582696,97169.0,97166.0,0.20583222]
[1763117384895,0.20583625,97165.0,97159.0,0.53231692]
[1763117385105,0.20583625,97165.0,97154.0,0.20585748]
[1763117385106,0.20584179,97162.0,97158.0,0.20584834]
[1763117385826,0.20582946,97168.0,97158.0,0.20584834]
[1763117386030,0.20582588,97170.0,97158.0,0.20584886]
[1763117386273,0.20582588,97170.0,97168.0,0.001]
[1763117386431,0.20582696,97169.0,97168.0,0.001]
[1763117386633,0.20583776,97164.0,97161.0,0.20689948]
[1763117386877,0.20583776,97164.0,97161.0,0.20789948]
[1763117387621,0.20583788,97164.0,97161.0,5.758e-05]
[1763117387826,0.15124959,97164.0,97161.0,0.20689979]
[1763117388249,0.20583953,97165.0,97162.0,0.20584083]
[1763117388477,0.20583953,97165.0,97161.0,0.20689979]
[1763117388668,0.20583757,97164.0,97161.0,0.20789979]
[1763117388878,0.20583953,97165.0,97161.0,0.20789979]
[1763117389060,0.2058376,97164.0,97161.0,0.20689979]
[1763117389239,0.20584179,97162.0,97161.0,0.00105758]
[1763117389698,0.22160179,97162.0,97161.0,0.00105758]
[1763117390124,0.26502053,97162.0,97161.0,0.00105758]
[1763117390328,0.26502053,97162.0,97161.0,0.00205758]
[1763117390710,0.26502053,97162.0,97161.0,0.00105758]
[1763117390885,0.26502053,97162.0,97161.0,5.758e-05]
[1763117391077,0.58802053,97162.0,97161.0,0.00205758]
[1763117391498,0.58802053,97162.0,97161.0,0.00105758]
[1763117392301,0.58802053,97162.0,97161.0,5.758e-05]
[1763117396855,0.54460179,97162.0,97161.0,5.758e-05]
[1763117402908,0.01576,97162.0,97161.0,5.758e-05]
[1763117403185,0.2289459,97170.0,97161.0,5.758e-05]
[1763117403186,0.20583225,97167.0,97163.0,0.20583844]
[1763117403425,0.01029018,97180.0,97161.0,5.758e-05]
[1763117403613,0.33329018,97180.0,97170.0,0.02]
[1763117403858,0.33329018,97180.0,97161.0,5.758e-05]
[1763117403859,0.20581261,97176.0,97172.0,0.20582041]
[1763117404053,0.10315819,97174.0,97172.0,0.20582006]
[1763117404269,0.20581261,97176.0,97161.0,5.758e-05]
[1763117404444,0.20581261,97176.0,97172.0,0.20581981]
[1763117404445,0.20581336,97176.0,97172.0,0.20581981]
[1763117404697,0.21609462,97180.0,97161.0,5.758e-05]
[1763117404698,0.01029018,97180.0,97170.0,0.20582356]
[1763117404915,0.20580789,97178.0,97174.0,0.20581571]
[1763117405126,0.26912,97184.0,97161.0,5.758e-05]
[1763117405127,0.2445,97184.0,97161.0,5.758e-05]
[1763117405362,0.2445,97184.0,97180.0,0.20580226]
[1763117405571,0.2445,97184.0,97179.0,0.20580463]
[1763117405572,0.2445,97184.0,97181.0,0.20580154]
[1763117405805,0.323,97184.0,97181.0,0.20580154]
[1763117406016,0.323,97184.0,97170.0,0.20582282]
[1763117406017,0.20578197,97191.0,97186.0,0.20578938]
[1763117406233,0.20578197,97191.0,97170.0,0.32646986]
[1763117406234,0.20579435,97185.0,97179.0,0.205804]
[1763117406479,0.20578656,97189.0,97183.0,0.20579566]
[1763117406698,0.11541819,97190.0,97184.0,0.20579457]
[1763117406902,0.11541819,97190.0,97183.0,0.20579566]
[1763117407124,0.2057876,97188.0,97183.0,0.20579566]
[1763117407381,0.20579095,97186.0,97180.0,0.20580242]
[1763117407575,0.20578563,97189.0,97179.0,0.20580578]
[1763117407782,0.20579067,97187.0,97183.0,0.001]
[1763117408004,0.11541819,97190.0,97149.0,0.07335421]
[1763117408005,0.11541819,97190.0,97182.0,0.20579906]
[1763117408211,0.20579057,97187.0,97182.0,0.20579906]
[1763117408427,0.20579615,97184.0,97180.0,0.20580262]
[1763117408647,0.20578818,97188.0,97183.0,0.001]
[1763117409064,0.20578818,97188.0,97183.0,0.20679656]
[1763117409273,0.20578818,97188.0,97183.0,0.001]
[1763117409274,0.20579176,97186.0,97183.0,0.001]
[1763117409475,0.20579176,97186.0,97183.0,0.002]
[1763117409630,0.20579492,97185.0,97183.0,0.001]
[1763117410047,0.01632,97184.0,97183.0,0.001]
[1763117410847,0.22211731,97184.0,97180.0,0.02]
[1763117411035,0.20580154,97181.0,97180.0,0.02]
[1763117411234,0.22212154,97181.0,97180.0,0.02]
[1763117413934,0.54512154,97181.0,97180.0,0.02]
[1763117419795,0.20582082,97172.0,97168.0,0.20582878]
[1763117420014,0.20582082,97172.0,97166.0,0.20583147]
[1763117420216,0.2058252,97170.0,97166.0,0.20583147]
[1763117420438,0.20582201,97172.0,97167.0,0.20583119]
[1763117420618,0.20582201,97172.0,97169.0,0.2092982]
[1763117420816,0.20582201,97172.0,97169.0,0.2058269]
[1763117421040,0.21791439,97175.0,97171.0,0.20924026]
[1763117421246,0.2058206,97172.0,97171.0,0.00341791]
[1763117421404,0.20582904,97169.0,97165.0,0.20583382]
[1763117421609,0.20581848,97173.0,97168.0,0.205829]
[1763117421820,0.20582214,97172.0,97169.0,0.20582647]
[1763117422011,0.20582291,97171.0,97169.0,0.20582647]
[1763117422214,0.30897877,97174.0,97169.0,0.20582647]
[1763117422419,0.2058206,97172.0,97170.0,0.0034446]
[1763117422686,0.20582058,97174.0,97162.0,0.20584179]
[1763117422918,0.2058138,97176.0,97172.0,0.2058206]
[1763117423034,0.20581003,97177.0,97173.0,0.20581701]
[1763117423235,0.20581003,97177.0,97175.0,0.00331115]
[1763117423475,0.20581003,97177.0,97172.0,0.2058206]
[1763117423675,0.20581718,97174.0,97165.0,0.20683523]
[1763117423853,0.20581896,97173.0,97169.0,0.2058265]
[1763117424057,0.20581505,97175.0,97171.0,0.20582272]
[1763117424482,0.20581942,97173.0,97170.0,0.20582477]
[1763117424687,0.20582176,97172.0,97165.0,0.20583437]
[1763117425021,0.20581967,97173.0,97169.0,0.20582518]
[1763117425222,0.20581802,97174.0,97171.0,0.001]
[1763117425809,0.2221406,97172.0,97171.0,0.001]
[1763117426315,0.2221406,97172.0,97171.0,0.002]
[1763117426482,0.20584179,97162.0,97158.0,0.20585002]
[1763117426663,0.01632,97172.0,97159.0,0.20584783]
[1763117426880,0.20583185,97167.0,97165.0,0.001]
[1763117427069,0.20583331,97166.0,97165.0,0.001]
[1763117427266,0.20584179,97162.0,97155.0,0.20585522]
[1763117427460,0.20583881,97164.0,97156.0,0.2058539]
[1763117427665,0.20583522,97166.0,97163.0,0.20583816]
[1763117427872,0.20583541,97167.0,97164.0,0.20583731]
[1763117428080,0.20582627,97170.0,97161.0,0.00105758]
[1763117428277,0.0121,97172.0,97161.0,5.758e-05]
[1763117428482,0.20583939,97164.0,97161.0,5.758e-05]
[1763117428794,0.0121,97172.0,97161.0,5.758e-05]
[1763117428795,0.20583585,97165.0,97162.0,0.20584179]
[1763117429018,0.20583331,97166.0,97163.0,0.20583775]
[1763117429217,0.20583331,97166.0,97164.0,0.00360477]
[1763117429417,0.20583331,97166.0,97165.0,0.001]
[1763117429598,0.20583331,97166.0,97164.0,0.20583738]
[1763117429801,0.20583331,97166.0,97163.0,0.20583961]
[1763117430021,0.20582747,97169.0,97162.0,0.20683762]
[1763117430223,0.20581421,97176.0,97162.0,0.20584179]
[1763117430569,0.20581677,97174.0,97170.0,0.20582278]
[1763117430717,0.2058255,97170.0,97165.0,0.001]
[1763117430921,0.35086986,97180.0,97161.0,5.758e-05]
[1763117431128,0.21790789,97179.0,97172.0,0.20582054]
[1763117431337,0.0121,97179.0,97171.0,0.2058218]
[1763117431509,0.0121,97179.0,97162.0,0.002]
[1763117431510,0.20583172,97167.0,97162.0,0.002]
[1763117431709,0.20583172,97167.0,97162.0,0.20784121]
[1763117431938,0.20583331,97166.0,97162.0,0.20784169]
[1763117432162,0.20583662,97165.0,97162.0,0.20784169]
[1763117432321,0.20582836,97169.0,97162.0,0.001]
[1763117432521,0.0118,97172.0,97161.0,5.758e-05]
[1763117432720,0.24230766,97179.0,97170.0,0.20582313]
[1763117432944,0.0244,97188.0,97161.0,0.20689937]
[1763117433220,0.20581167,97177.0,97173.0,0.2058184]
[1763117433393,0.20580932,97178.0,97174.0,0.20581522]
[1763117433595,0.323,97187.0,97174.0,0.20581522]
[1763117433596,0.20580992,97179.0,97175.0,0.20581349]
[1763117434387,0.20580967,97178.0,97175.0,0.20581349]
[1763117434581,0.20580151,97182.0,97177.0,0.205808]
[1763117434763,0.20580151,97182.0,97179.0,0.20580571]
[1763117435118,0.323,97185.0,97179.0,0.20580571]
[1763117435259,0.20579433,97185.0,97179.0,0.20580571]
[1763117435689,0.20579903,97183.0,97180.0,0.2058036]
[1763117435880,0.20579602,97184.0,97180.0,0.20580346]
[1763117436075,0.20579444,97185.0,97180.0,0.20580366]
[1763117436282,0.20579535,97184.0,97180.0,0.20580366]
[1763117436717,0.20580423,97180.0,97176.0,0.20581008]
[1763117436899,0.20581251,97176.0,97173.0,0.20581811]
[1763117437169,0.20580313,97181.0,97165.0,0.20583393]
[1763117437380,0.20582828,97169.0,97165.0,0.2058336]
[1763117437804,0.20582828,97169.0,97166.0,0.20583269]
[1763117437937,0.20581831,97174.0,97159.0,0.32646986]
[1763117438144,0.20581968,97173.0,97159.0,0.32646986]
[1763117438346,0.20582307,97171.0,97166.0,0.20583218]
[1763117438655,0.20581762,97174.0,97166.0,0.20583218]
[1763117438835,0.20582457,97171.0,97166.0,0.20583218]
[1763117439047,0.20582485,97170.0,97166.0,0.20583218]
[1763117439286,0.20582457,97171.0,97167.0,0.20582916]
[1763117439486,0.0118,97181.0,97162.0,0.20584179]
[1763117439828,0.21760154,97181.0,97171.0,0.2058221]
[1763117439967,0.0118,97181.0,97166.0,0.001]
[1763117440186,0.10315819,97246.0,97180.0,0.01029018]
[1763117440187,0.0118,97204.0,97180.0,0.01029018]
[1763117440397,0.20576417,97199.0,97193.0,0.20577545]
[1763117440606,0.0118,97209.0,97195.0,0.20576979]
[1763117440853,0.20575519,97203.0,97199.0,0.20576277]
[1763117441056,0.20575519,97203.0,97200.0,0.2057605]
[1763117441268,0.01534,97200.0,97179.0,0.03088489]
[1763117441483,0.2057719,97195.0,97188.0,0.20578634]
[1763117441685,0.0118,97199.0,97180.0,0.32646986]
[1763117441902,0.20578268,97190.0,97186.0,0.20579095]
[1763117442110,0.20576555,97198.0,97183.0,0.20579533]
[1763117442318,0.20574438,97208.0,97184.0,0.10315819]
[1763117442540,0.20575496,97204.0,97196.0,0.20576862]
[1763117442752,0.0118,97207.0,97184.0,0.10315819]
[1763117442987,0.20574861,97206.0,97201.0,0.20575894]
[1763117443207,0.20574861,97206.0,97202.0,0.2057568]
[1763117443414,0.20575905,97202.0,97197.0,0.20576557]
[1763117443614,0.21755073,97207.0,97190.0,0.32646986]
[1763117443830,0.20575918,97202.0,97198.0,0.20576537]
[1763117444254,0.0118,97207.0,97191.0,0.20577971]
[1763117444471,0.0244,97206.0,97188.0,0.2057863]
[1763117444689,0.20577942,97192.0,97187.0,0.20578879]
[1763117444913,0.20577942,97192.0,97160.0,0.53676216]
[1763117444914,0.32635086,97200.0,97171.0,0.12352]
[1763117445124,0.32635086,97200.0,97179.0,0.20586182]
[1763117445125,0.2057939,97185.0,97179.0,0.20586182]
[1763117445339,0.20579953,97182.0,97179.0,5.758e-05]
[1763117445552,0.20580145,97183.0,97179.0,5.758e-05]
[1763117445974,0.20580154,97181.0,97179.0,5.758e-05]
[1763117446387,0.20579467,97185.0,97181.0,0.20580154]
[1763117446596,0.0118,97191.0,97179.0,0.20586191]
[1763117446861,0.0118,97191.0,97190.0,0.001]
[1763117447069,0.0118,97191.0,97187.0,0.20578737]
[1763117447278,0.0118,97191.0,97185.0,0.20579116]
[1763117447489,0.0118,97191.0,97179.0,0.00205758]
[1763117447490,0.21758045,97191.0,97179.0,5.758e-05]
[1763117447704,0.20577345,97195.0,97179.0,5.758e-05]
[1763117447920,0.20577401,97194.0,97189.0,0.20578422]
[1763117448162,0.20577613,97193.0,97189.0,0.20578422]
[1763117448388,0.20577927,97192.0,97189.0,0.20578422]
[1763117448599,0.20577572,97194.0,97188.0,0.2057826]
[1763117448814,0.20578021,97192.0,97179.0,5.758e-05]
[1763117449016,0.20578073,97191.0,97188.0,0.2057863]
[1763117449227,0.20578073,97191.0,97189.0,0.001]
[1763117449425,0.20577082,97196.0,97190.0,0.20578248]
[1763117449635,0.20577834,97192.0,97189.0,0.20578404]
[1763117449853,0.10315819,97195.0,97179.0,0.00205758]
[1763117450091,0.0244,97199.0,97188.0,0.001]
[1763117450295,0.2057846,97189.0,97188.0,0.001]
[1763117450510,0.10315819,97197.0,97181.0,0.20580051]
[1763117450746,0.20578517,97189.0,97185.0,0.20579101]
[1763117451357,0.205787,97188.0,97185.0,0.20579101]
[1763117451747,0.12755819,97197.0,97179.0,0.20586124]
[1763117451945,0.20577603,97195.0,97190.0,0.20578179]
[1763117452121,0.33332797,97197.0,97191.0,0.20578017]
[1763117452438,0.33332797,97197.0,97190.0,0.20578179]
[1763117452439,0.12755819,97197.0,97190.0,0.00291085]
[1763117452672,0.20579095,97186.0,97185.0,0.001]
[1763117452890,0.20579693,97184.0,97179.0,5.758e-05]
[1763117453094,0.20579859,97183.0,97179.0,5.758e-05]
[1763117453489,0.20580366,97180.0,97179.0,5.758e-05]
[1763117454176,0.20580366,97180.0,97179.0,0.00205758]
[1763117454377,0.20580366,97180.0,97179.0,5.758e-05]
[1763117454911,0.20580366,97180.0,97179.0,0.00205758]
[1763117455356,0.20580366,97180.0,97179.0,5.758e-05]
[1763117455733,0.20580366,97180.0,97179.0,0.00205758]
[1763117456553,0.22114366,97180.0,97179.0,0.00205758]
[1763117456966,0.22114366,97180.0,97179.0,0.00105758]
[1763117457414,0.22114366,97180.0,97179.0,5.758e-05]
[1763117459105,0.5875624,97180.0,97179.0,5.758e-05]
[1763117459620,0.5875624,97180.0,97179.0,0.00326197]
[1763117460499,0.5885624,97180.0,97179.0,0.00326197]
[1763117462396,0.5895624,97180.0,97179.0,0.00326197]
[1763117462606,0.5885624,97180.0,97179.0,0.00326197]
[1763117462975,0.5895624,97180.0,97179.0,0.00326197]
[1763117465163,0.8340624,97180.0,97179.0,0.00326197]
[1763117467985,0.8340624,97180.0,97179.0,1.97e-06]
[1763117469415,0.8330624,97180.0,97179.0,1.97e-06]
[1763117469690,0.8524624,97180.0,97179.0,1.97e-06]
[1763117470153,0.87266261,97180.0,97179.0,1.97e-06]
[1763117470350,0.92581552,97180.0,97179.0,1.97e-06]
[1763117470563,1.0294849,97180.0,97179.0,1.97e-06]
[1763117471231,1.0294849,97180.0,97150.0,0.0004]
[1763117471232,0.57228383,97151.0,97150.0,0.0004]
[1763117471528,0.94896202,97151.0,97150.0,0.00053649]
[1763117471746,0.94896202,97151.0,97150.0,0.0013102]
[1763117472306,0.94996202,97151.0,97150.0,0.0013102]
[1763117473327,1.0536314,97151.0,97150.0,0.0013102]
[1763117473575,0.94996202,97151.0,97150.0,0.0013102]
[1763117473922,0.95096202,97151.0,97150.0,0.0013102]
[1763117479339,0.97013327,97151.0,97150.0,0.0013102]
[1763117479804,0.97013335,97151.0,97150.0,0.0013102]
[1763117480252,0.20590748,97131.0,97130.0,0.0204]
[1763117480402,0.23492748,97131.0,97130.0,0.02085592]
[1763117480604,0.33808567,97131.0,97130.0,0.02085592]
[1763117483015,0.20590543,97132.0,97130.0,0.02085592]
[1763117483220,0.20590617,97132.0,97130.0,0.00085592]
[1763117483538,0.20590748,97131.0,97130.0,0.00085592]
[1763117483774,0.20590617,97132.0,97130.0,0.00085592]
[1763117483958,0.20590317,97134.0,97130.0,0.00085592]
[1763117484161,0.20590394,97133.0,97130.0,0.00085592]
[1763117484370,0.0124,97131.0,97130.0,0.00085592]
[1763117484568,0.21830748,97131.0,97130.0,0.00085592]
[1763117484809,0.23492748,97131.0,97130.0,0.00085592]
[1763117485328,0.23492748,97131.0,97130.0,0.02085592]
[1763117485527,0.55792748,97131.0,97130.0,0.00085592]
[1763117485869,0.55792748,97131.0,97130.0,0.0013897]
[1763117488298,0.57715824,97131.0,97130.0,0.0013897]
[1763117495377,0.57715824,97131.0,97130.0,0.0213897]
[1763117495578,0.57715824,97131.0,97130.0,0.0013897]
[1763117496889,0.62057698,97131.0,97130.0,0.0013897]
[1763117497343,0.62061298,97131.0,97130.0,0.0013897]
[1763117498511,0.62261298,97131.0,97130.0,0.0013897]
[1763117499280,0.64482292,97131.0,97130.0,0.0013897]
[1763117499487,0.52892868,97121.0,97120.0,0.02]
[1763117499657,0.67977822,97121.0,97120.0,0.02]
[1763117500111,0.67977822,97121.0,97120.0,0.02026694]
[1763117501115,0.67977822,97121.0,97120.0,0.00026694]
[1763117502157,0.66372022,97121.0,97120.0,0.02026694]
[1763117502375,0.67973022,97121.0,97120.0,0.02026694]
[1763117511969,0.67973022,97121.0,97120.0,0.00026694]
[1763117514346,0.66046346,97121.0,97120.0,0.00026694]
[1763117516483,0.64445346,97121.0,97120.0,0.00026694]
[1763117516716,0.66046346,97121.0,97120.0,0.00026694]
[1763117518622,0.66046346,97121.0,97120.0,0.02026694]
[1763117519969,0.54129527,97121.0,97120.0,0.00026694]
[1763117520647,0.55796527,97121.0,97120.0,0.00026694]
[1763117520868,0.66112346,97121.0,97120.0,0.00026694]
[1763117521082,0.66112346,97121.0,97120.0,0.02026694]
[1763117523519,0.7045422,97121.0,97120.0,0.02026694]
[1763117523721,0.9490422,97121.0,97120.0,0.00026694]
[1763117524131,0.98861796,97121.0,97120.0,0.00026694]
[1763117524333,1.01086003,97121.0,97120.0,0.00026694]
[1763117524761,1.01186003,97121.0,97120.0,0.00026694]
[1763117525387,1.01286003,97121.0,97120.0,0.00026694]
[1763117527352,0.99061796,97121.0,97120.0,0.00026694]
[1763117528988,1.09428734,97121.0,97120.0,0.00026694]
[1763117529231,0.24936863,97111.0,97110.0,0.0004]
[1763117529443,0.26581863,97111.0,97110.0,0.0004]
[1763117529669,0.28511263,97111.0,97110.0,0.0004]
[1763117530503,0.942307,97111.0,97110.0,0.0004]
[1763117530744,0.89482694,97111.0,97110.0,0.0004]
[1763117531630,0.89582694,97111.0,97110.0,0.0004]
[1763117531840,0.89482694,97111.0,97110.0,0.0004]
[1763117534985,0.89482694,97111.0,97110.0,0.00066699]
[1763117536086,0.89479672,97111.0,97110.0,0.00066699]
[1763117536550,0.95411995,97111.0,97110.0,0.00066699]
[1763117537189,0.46689989,97111.0,97110.0,0.00066699]
[1763117537388,0.78989989,97111.0,97110.0,0.00066699]
[1763117537606,0.78989989,97111.0,97110.0,0.02066699]
[1763117537891,0.80149989,97111.0,97110.0,0.02066699]
[1763117538699,0.47849989,97111.0,97110.0,0.02066699]
[1763117539149,0.80149989,97111.0,97110.0,0.00066699]
[1763117539404,0.84491863,97111.0,97110.0,0.00066699]
[1763117539650,0.85634166,97111.0,97110.0,0.00066699]
[1763117539847,0.84491863,97111.0,97110.0,0.00066699]
[1763117539980,0.84904168,97111.0,97110.0,0.00066699]
[1763117540710,0.85004168,97111.0,97110.0,0.00066699]
[1763117540905,0.84904168,97111.0,97110.0,0.00066699]
[1763117541083,0.85004168,97111.0,97110.0,0.00066699]
[1763117541265,0.85104168,97111.0,97110.0,0.00066699]
[1763117542079,0.52391863,97111.0,97110.0,0.02066699]
[1763117543045,0.84491863,97111.0,97110.0,0.02066699]
[1763117543385,0.80149989,97111.0,97110.0,0.02066699]
[1763117544337,0.80149989,97111.0,97110.0,0.00066699]
[1763117544910,0.6767597,97120.0,97110.0,0.00066699]
[1763117544911,0.01241459,97121.0,97110.0,0.00066699]
[1763117545269,0.01241459,97121.0,97110.0,0.0204]
[1763117545270,0.20594846,97112.0,97110.0,0.0204]
[1763117545390,0.20594222,97115.0,97112.0,0.20594664]
[1763117545600,0.10315819,97120.0,97110.0,0.0204]
[1763117545601,0.20593839,97117.0,97113.0,0.20594476]
[1763117546045,0.20594989,97111.0,97110.0,0.0204]
[1763117546256,0.22239989,97111.0,97110.0,0.0004]
[1763117547221,0.01645,97111.0,97110.0,0.0004]
[1763117547967,0.20594565,97113.0,97110.0,0.0004]
[1763117548162,0.20594989,97111.0,97110.0,0.0004]
[1763117548687,0.22239989,97111.0,97110.0,0.0004]
[1763117549515,0.20594989,97111.0,97110.0,0.0004]
[1763117549719,0.22239989,97111.0,97110.0,0.0004]
[1763117552536,0.34598,97119.0,97110.0,0.0004]
[1763117552737,0.20594798,97112.0,97110.0,0.0004]
[1763117553185,0.20594567,97113.0,97110.0,0.0004]
[1763117553325,0.20594989,97111.0,97110.0,0.0204]
[1763117553525,0.20594989,97111.0,97110.0,0.0004]
[1763117553725,0.20594771,97113.0,97110.0,0.00066699]
[1763117553932,0.20594974,97112.0,97110.0,0.0004]
[1763117554131,0.20594989,97111.0,97110.0,0.0004]
[1763117554476,0.20594989,97111.0,97110.0,0.00066699]
[1763117555263,0.20594989,97111.0,97110.0,0.02066699]
[1763117555473,0.20594989,97111.0,97110.0,0.00066699]
[1763117557092,0.20594565,97113.0,97110.0,0.00066699]
[1763117557437,0.20594565,97113.0,97111.0,0.2059496]
[1763117557559,0.20594359,97114.0,97110.0,0.20635013]
[1763117557759,0.20594359,97114.0,97110.0,0.0004]
[1763117557959,0.20594398,97114.0,97110.0,0.0004]
[1763117558237,0.20594789,97112.0,97110.0,0.0004]
[1763117558427,0.20594959,97113.0,97110.0,0.0004]
[1763117558604,0.20594959,97113.0,97110.0,0.20635094]
[1763117558804,0.20594959,97113.0,97110.0,0.0004]
[1763117558992,0.20594959,97113.0,97111.0,0.001]
[1763117559191,0.20594787,97112.0,97110.0,0.0004]
[1763117559615,0.20594989,97111.0,97110.0,0.0014]
[1763117559860,0.20594989,97111.0,97110.0,0.0004]
[1763117560094,0.23369989,97111.0,97110.0,0.0014]
[1763117560246,0.21725989,97111.0,97110.0,0.0014]
[1763117560428,0.21725989,97111.0,97110.0,0.0004]
[1763117561025,0.21725989,97111.0,97110.0,0.0014]
[1763117561578,0.23369989,97111.0,97110.0,0.0014]
[1763117562185,0.23369989,97111.0,97110.0,0.0204]
[1763117562380,0.23369989,97111.0,97110.0,0.0224]
[1763117562700,0.23369989,97111.0,97110.0,0.0214]
[1763117562902,0.23369989,97111.0,97110.0,0.0204]
[1763117563077,0.23369989,97111.0,97110.0,0.02166699]
[1763117563282,0.23369989,97111.0,97110.0,0.02066699]
[1763117563936,0.20594989,97111.0,97110.0,0.00066699]
[1763117566251,0.21725989,97111.0,97110.0,0.00066699]
[1763117567290,0.23369989,97111.0,97110.0,0.00066699]
[1763117571641,0.21725989,97111.0,97110.0,0.00066699]
[1763117571844,0.00045459,97121.0,97110.0,0.00066699]
[1763117572056,0.20594457,97114.0,97110.0,0.20634999]
[1763117572256,0.20594068,97116.0,97111.0,0.2059478]
[1763117572472,0.10315819,97120.0,97110.0,0.0204]
[1763117572883,0.20593968,97116.0,97112.0,0.20594726]
[1763117573087,0.20593962,97116.0,97113.0,0.20594475]
[1763117573358,0.20594081,97116.0,97111.0,0.20594787]
[1763117573544,0.20594201,97115.0,97111.0,0.20594787]
[1763117574095,0.20594777,97112.0,97110.0,0.0014]
[1763117574295,0.20594989,97111.0,97110.0,0.0004]
[1763117574709,0.21725989,97111.0,97110.0,0.0014]
[1763117575331,0.21725989,97111.0,97110.0,0.0004]
[1763117575722,0.21725989,97111.0,97110.0,0.0024]
[1763117578587,0.23369989,97111.0,97110.0,0.0024]
[1763117578956,0.23369989,97111.0,97110.0,0.00266699]
[1763117579576,0.23369989,97111.0,97110.0,0.00166699]
[1763117579783,0.23369989,97111.0,97110.0,0.00266699]
[1763117580440,0.23369989,97111.0,97110.0,0.02166699]
[1763117580639,0.23369989,97111.0,97110.0,0.02266699]
[1763117581096,0.2059711,97101.0,97100.0,0.0004]
[1763117581252,0.5563511,97101.0,97100.0,0.0004]
[1763117581674,0.5563511,97101.0,97100.0,0.00066703]
[1763117582134,0.01207,97091.0,97090.0,0.01966703]
[1763117582334,0.20600126,97087.0,97084.0,0.0196]
[1763117582473,0.20599231,97091.0,97090.0,0.01966703]
[1763117582673,0.20599551,97090.0,97084.0,0.0196]
[1763117582891,0.2059817,97096.0,97095.0,0.0159]
[1763117583313,0.2059817,97096.0,97095.0,0.01594538]
[1763117584477,0.20596722,97103.0,97095.0,0.01694538]
[1763117584650,0.20596049,97106.0,97104.0,0.0098]
[1763117584826,0.20596261,97105.0,97104.0,0.0098]
[1763117585028,0.2059817,97096.0,97095.0,0.00104538]
[1763117585512,0.2059817,97096.0,97095.0,4.538e-05]
[1763117586340,0.2059817,97096.0,97095.0,0.00104538]
[1763117586759,0.2059817,97096.0,97095.0,0.00204538]
[1763117587000,0.2211717,97096.0,97095.0,0.00204538]
[1763117587236,0.2059817,97096.0,97095.0,0.00104538]
[1763117587610,0.2059817,97096.0,97095.0,0.00204538]
[1763117591088,0.2211717,97096.0,97095.0,0.00204538]
[1763117595335,0.2059817,97096.0,97095.0,0.00204538]
[1763117598143,0.02302,97116.0,97104.0,0.0098]
[1763117598475,0.20596261,97105.0,97104.0,0.0098]
[1763117600893,0.02302,97113.0,97104.0,0.0098]
[1763117600894,0.20595624,97109.0,97105.0,0.0196]
[1763117601053,0.45045106,97111.0,97105.0,0.0196]
[1763117601259,0.20595201,97110.0,97105.0,0.0196]
[1763117601458,0.20595638,97108.0,97105.0,0.0196]
[1763117601665,0.20596049,97106.0,97105.0,0.0196]
[1763117602522,0.20595883,97107.0,97105.0,0.0196]
[1763117602717,0.20595638,97108.0,97105.0,0.0196]
[1763117602912,0.20595909,97107.0,97105.0,0.0206]
[1763117603296,0.20595909,97107.0,97105.0,0.0196]
[1763117603699,0.20596049,97106.0,97105.0,0.001]
[1763117603934,0.20596049,97106.0,97105.0,0.002]
[1763117604110,0.20596049,97106.0,97105.0,0.001]
[1763117604517,0.20596049,97106.0,97105.0,0.002]
[1763117604717,0.20596049,97106.0,97105.0,0.001]
[1763117604899,0.20596261,97105.0,97104.0,0.0098]
[1763117606189,0.20596261,97105.0,97104.0,0.0108]
[1763117606614,0.20596261,97105.0,97104.0,0.0118]
[1763117608806,0.2059817,97096.0,97095.0,4.538e-05]
[1763117609009,0.60116044,97096.0,97095.0,4.538e-05]
[1763117609388,0.63208631,97096.0,97095.0,4.538e-05]
[1763117609580,0.65137104,97096.0,97095.0,4.538e-05]
[1763117609906,0.67358714,97096.0,97095.0,4.538e-05]
[1763117610273,0.63308631,97096.0,97095.0,4.538e-05]
[1763117610469,0.63208631,97096.0,97095.0,4.538e-05]
[1763117610869,0.63308631,97096.0,97095.0,4.538e-05]
[1763117611150,0.63208631,97096.0,97095.0,4.538e-05]
[1763117612278,0.63308631,97096.0,97095.0,4.538e-05]
[1763117612485,0.63408631,97096.0,97095.0,4.538e-05]
[1763117614594,0.87858631,97096.0,97095.0,4.538e-05]
[1763117619310,0.83516757,97096.0,97095.0,4.538e-05]
[1763117620785,0.87858631,97096.0,97095.0,4.538e-05]
[1763117622894,0.83516757,97096.0,97095.0,4.538e-05]
[1763117623101,0.87858631,97096.0,97095.0,4.538e-05]
[1763117625594,0.84766044,97096.0,97095.0,4.538e-05]
[1763117633640,0.4524817,97096.0,97095.0,4.538e-05]
[1763117635274,0.4687617,97096.0,97095.0,4.538e-05]
[1763117635645,0.4677617,97096.0,97095.0,4.538e-05]
[1763117635849,0.4667617,97096.0,97095.0,4.538e-05]
[1763117636157,0.4677617,97096.0,97095.0,4.538e-05]
[1763117637067,0.4514817,97096.0,97095.0,4.538e-05]
[1763117638101,0.2069817,97096.0,97095.0,4.538e-05]
[1763117640900,0.001,97096.0,97095.0,4.538e-05]